[Event "Live Chess"]
[Site "Chess.com"]
[Date "2021.04.28"]
[Round "6"]
[White "echecsmike"]
[Black "night_breeze"]
[Result "1-0"]
[CurrentPosition "8/p3P2k/1p6/2p3pp/4p2b/1P2P3/PB5P/6K1 b - -"]
[Timezone "UTC"]
[ECO "D04"]
[ECOUrl "https://www.chess.com/openings/Colle-System-Anti-Colle-Variation"]
[UTCDate "2021.04.28"]
[UTCTime "03:02:24"]
[WhiteElo "1446"]
[BlackElo "963"]
[TimeControl "2100+2"]
[Termination "echecsmike won by resignation"]
[StartTime "03:02:24"]
[EndDate "2021.04.28"]
[EndTime "04:01:53"]
[Link "https://www.chess.com/game/live/13317753055"]

1. d4 {[%clk 0:34:56.5]} 1... d5 {[%clk 0:34:50.5]} 2. Nf3 {[%clk 0:34:55.6]} 2... Nf6 {[%clk 0:34:50.3]} 3. e3 {[%clk 0:34:55]} 3... Bf5 {[%clk 0:34:50.2]} 4. c4 {[%clk 0:34:43.3]} 4... e6 {[%clk 0:34:38.6]} 5. Qb3 {[%clk 0:34:42]} 5... b6 {[%clk 0:34:02.7]} 6. Ne5 {[%clk 0:34:37.8]} 6... Bd6 {[%clk 0:33:02.7]} 7. Qa4+ {[%clk 0:34:31]} 7... Nfd7 {[%clk 0:32:21.5]} 8. cxd5 {[%clk 0:34:15.6]} 8... exd5 {[%clk 0:31:57.6]} 9. Nxd7 {[%clk 0:32:36.1]} 9... Qxd7 {[%clk 0:30:34.6]} 10. Bb5 {[%clk 0:32:21.6]} 10... c6 {[%clk 0:30:23.8]} 11. Be2 {[%clk 0:30:58.5]} 11... O-O {[%clk 0:30:01.4]} 12. O-O {[%clk 0:30:52.7]} 12... Qc7 {[%clk 0:28:24.2]} 13. g3 {[%clk 0:30:49.4]} 13... Bh3 {[%clk 0:28:08]} 14. Re1 {[%clk 0:30:43.1]} 14... Nd7 {[%clk 0:28:06.7]} 15. Nd2 {[%clk 0:30:29.4]} 15... Nf6 {[%clk 0:26:49.3]} 16. Qc2 {[%clk 0:30:08.4]} 16... Rfe8 {[%clk 0:22:59.3]} 17. Bd3 {[%clk 0:30:03.8]} 17... c5 {[%clk 0:21:17.3]} 18. Nf3 {[%clk 0:29:47.7]} 18... Ne4 {[%clk 0:20:47.6]} 19. b3 {[%clk 0:28:26.2]} 19... h5 {[%clk 0:18:29.3]} 20. Bb2 {[%clk 0:28:14.3]} 20... g5 {[%clk 0:17:27.2]} 21. Nd2 {[%clk 0:28:06.6]} 21... f5 {[%clk 0:15:48.8]} 22. f3 {[%clk 0:27:34.5]} 22... Bxg3 {[%clk 0:15:25.3]} 23. Nxe4 {[%clk 0:27:10.3]} 23... fxe4 {[%clk 0:14:11.5]} 24. fxe4 {[%clk 0:26:59]} 24... dxe4 {[%clk 0:13:41.2]} 25. Bc4+ {[%clk 0:25:45.4]} 25... Kh7 {[%clk 0:12:21.3]} 26. Re2 {[%clk 0:25:11]} 26... Bh4 {[%clk 0:11:11.7]} 27. Bd5 {[%clk 0:24:22.1]} 27... Bf5 {[%clk 0:09:41.7]} 28. Bxa8 {[%clk 0:23:51.5]} 28... Rxa8 {[%clk 0:09:43.6]} 29. d5 {[%clk 0:20:30.5]} 29... Rf8 {[%clk 0:08:25.4]} 30. Rd2 {[%clk 0:20:11.5]} 30... Kh6 {[%clk 0:06:23.2]} 31. d6 {[%clk 0:19:46.3]} 31... Qf7 {[%clk 0:06:03]} 32. Rf1 {[%clk 0:19:11.4]} 32... Qd7 {[%clk 0:05:21.9]} 33. Rd5 {[%clk 0:18:12.9]} 33... Kg6 {[%clk 0:04:16.8]} 34. Qc3 {[%clk 0:17:34.6]} 34... Rf7 {[%clk 0:03:32.6]} 35. Rfxf5 {[%clk 0:12:48.8]} 35... Rxf5 {[%clk 0:02:48.7]} 36. Rxf5 {[%clk 0:12:47]} 36... Kxf5 {[%clk 0:02:48.8]} 37. Qe5+ {[%clk 0:12:44]} 37... Kg6 {[%clk 0:02:06.9]} 38. Qf6+ {[%clk 0:11:48]} 38... Kh7 {[%clk 0:02:07.4]} 39. Qe7+ {[%clk 0:11:46.8]} 39... Qxe7 {[%clk 0:01:51.4]} 40. dxe7 {[%clk 0:11:45.2]} 1-0

[Event "Live Chess"]
[Site "Chess.com"]
[Date "2021.04.28"]
[Round "6"]
[White "Bruce_Hedman"]
[Black "Mateojackson"]
[Result "0-1"]
[CurrentPosition "6k1/5p1p/3p1qp1/4p3/7P/5N2/2r1N1P1/5K2 w - e6"]
[Timezone "UTC"]
[ECO "A57"]
[ECOUrl "https://www.chess.com/openings/Benko-Gambit"]
[UTCDate "2021.04.28"]
[UTCTime "03:02:31"]
[WhiteElo "1035"]
[BlackElo "1305"]
[TimeControl "2100+2"]
[Termination "Mateojackson won on time"]
[StartTime "03:02:31"]
[EndDate "2021.04.28"]
[EndTime "03:53:16"]
[Link "https://www.chess.com/game/live/13317753413"]

1. d4 {[%clk 0:34:52.8]} 1... Nf6 {[%clk 0:34:35.8]} 2. c4 {[%clk 0:34:50.4]} 2... c5 {[%clk 0:34:36.1]} 3. d5 {[%clk 0:34:37.4]} 3... b5 {[%clk 0:34:35.5]} 4. b3 {[%clk 0:34:33]} 4... g6 {[%clk 0:34:30.5]} 5. Bb2 {[%clk 0:34:20.1]} 5... bxc4 {[%clk 0:34:22.9]} 6. bxc4 {[%clk 0:34:17.8]} 6... Bg7 {[%clk 0:34:11.6]} 7. Nf3 {[%clk 0:33:59.5]} 7... Qb6 {[%clk 0:34:00.8]} 8. Qb3 {[%clk 0:32:57]} 8... d6 {[%clk 0:33:32]} 9. Nbd2 {[%clk 0:30:48.3]} 9... Bf5 {[%clk 0:33:20.1]} 10. Nh4 {[%clk 0:28:37]} 10... Bd7 {[%clk 0:32:38.7]} 11. Rb1 {[%clk 0:27:12.7]} 11... O-O {[%clk 0:32:14]} 12. e4 {[%clk 0:26:42.5]} 12... Qa5 {[%clk 0:31:19.5]} 13. Bd3 {[%clk 0:24:05.9]} 13... Na6 {[%clk 0:30:33.9]} 14. Bc3 {[%clk 0:23:27]} 14... Nb4 {[%clk 0:29:53.4]} 15. Bxb4 {[%clk 0:21:37.8]} 15... cxb4 {[%clk 0:29:50.5]} 16. Qxb4 {[%clk 0:21:32.5]} 16... Qxa2 {[%clk 0:29:39.1]} 17. Rb2 {[%clk 0:19:55.4]} 17... Qa1+ {[%clk 0:29:09.4]} 18. Nb1 {[%clk 0:18:17.2]} 18... Nxe4 {[%clk 0:28:50.2]} 19. Bxe4 {[%clk 0:15:17.8]} 19... Qxb2 {[%clk 0:28:37.7]} 20. Qxb2 {[%clk 0:14:40.4]} 20... Bxb2 {[%clk 0:28:36.7]} 21. O-O {[%clk 0:14:20]} 21... Rab8 {[%clk 0:28:26.9]} 22. Nf3 {[%clk 0:13:06.3]} 22... Bg7 {[%clk 0:28:10.6]} 23. Rc1 {[%clk 0:12:34.5]} 23... Rfc8 {[%clk 0:27:53.3]} 24. h3 {[%clk 0:11:37.7]} 24... Bb2 {[%clk 0:27:42.4]} 25. Rc2 {[%clk 0:11:11.8]} 25... Ba4 {[%clk 0:27:38.5]} 26. Re2 {[%clk 0:09:07.3]} 26... Rxc4 {[%clk 0:27:13.5]} 27. Bd3 {[%clk 0:08:58]} 27... Rc1+ {[%clk 0:26:54.5]} 28. Kh2 {[%clk 0:08:48.7]} 28... Bb5 {[%clk 0:26:44.5]} 29. Rxb2 {[%clk 0:08:22.9]} 29... Rc5 {[%clk 0:26:10.7]} 30. Bxb5 {[%clk 0:07:57.6]} 30... Rcxb5 {[%clk 0:26:09.3]} 31. Rxb5 {[%clk 0:07:47]} 31... Rxb5 {[%clk 0:26:09]} 32. Nc3 {[%clk 0:07:17.9]} 32... Rc5 {[%clk 0:26:03.8]} 33. Ne4 {[%clk 0:06:13.1]} 33... Rxd5 {[%clk 0:25:57.7]} 34. h4 {[%clk 0:05:54.7]} 34... a5 {[%clk 0:25:44.5]} 35. Ned2 {[%clk 0:05:38.5]} 35... a4 {[%clk 0:25:40.8]} 36. Nc4 {[%clk 0:05:32.3]} 36... Rc5 {[%clk 0:25:31.6]} 37. Na3 {[%clk 0:05:20.3]} 37... Rc3 {[%clk 0:25:26.5]} 38. Nb5 {[%clk 0:05:18]} 38... Rb3 {[%clk 0:25:15.9]} 39. Nbd4 {[%clk 0:05:03.8]} 39... Rb4 {[%clk 0:24:54.8]} 40. Nc2 {[%clk 0:04:56.3]} 40... Rb2 {[%clk 0:24:43.7]} 41. Na3 {[%clk 0:04:01.1]} 41... Rxf2 {[%clk 0:24:29]} 42. Kg1 {[%clk 0:03:03.2]} 42... Ra2 {[%clk 0:24:27.4]} 43. Nb1 {[%clk 0:02:47.8]} 43... a3 {[%clk 0:24:06.5]} 44. Nc3 {[%clk 0:01:50.4]} 44... Rb2 {[%clk 0:23:50.4]} 45. Na4 {[%clk 0:01:01.2]} 45... Rb1+ {[%clk 0:23:44.6]} 46. Kf2 {[%clk 0:00:59.5]} 46... a2 {[%clk 0:23:45.4]} 47. Nc3 {[%clk 0:00:28.9]} 47... Rb2+ {[%clk 0:23:42]} 48. Kf1 {[%clk 0:00:22.1]} 48... a1=Q+ {[%clk 0:23:40]} 49. Ne1 {[%clk 0:00:21]} 49... Rc2 {[%clk 0:23:24]} 50. Ne2 {[%clk 0:00:14.2]} 50... Qf6+ {[%clk 0:23:13.7]} 51. Nf3 {[%clk 0:00:07.2]} 51... e5 {[%clk 0:23:05.1]} 0-1

[Event "Live Chess"]
[Site "Chess.com"]
[Date "2021.04.28"]
[Round "6"]
[White "Bonaparte1984"]
[Black "Charvii"]
[Result "0-1"]
[CurrentPosition "8/2pk1p2/8/1p2PNp1/1N1P3p/2P4K/8/4r3 w - -"]
[Timezone "UTC"]
[ECO "C68"]
[ECOUrl "https://www.chess.com/openings/Ruy-Lopez-Opening-Morphy-Defense-Exchange-Variation-4...dxc6"]
[UTCDate "2021.04.28"]
[UTCTime "03:02:27"]
[WhiteElo "1280"]
[BlackElo "984"]
[TimeControl "2100+2"]
[Termination "Charvii won on time"]
[StartTime "03:02:27"]
[EndDate "2021.04.28"]
[EndTime "04:15:06"]
[Link "https://www.chess.com/game/live/13317753703"]

1. e4 {[%clk 0:34:55.8]} 1... e5 {[%clk 0:34:46]} 2. Nf3 {[%clk 0:34:56.1]} 2... Nc6 {[%clk 0:34:24.9]} 3. Bb5 {[%clk 0:34:54.5]} 3... a6 {[%clk 0:34:23.2]} 4. Bxc6 {[%clk 0:34:53.1]} 4... dxc6 {[%clk 0:34:20.7]} 5. h3 {[%clk 0:34:45.3]} 5... Bc5 {[%clk 0:33:48.2]} 6. d3 {[%clk 0:33:31.7]} 6... Bd6 {[%clk 0:32:57.4]} 7. Nbd2 {[%clk 0:32:12.1]} 7... b5 {[%clk 0:32:12.7]} 8. Nb3 {[%clk 0:31:57]} 8... Be6 {[%clk 0:29:59.4]} 9. Be3 {[%clk 0:31:42.9]} 9... Qe7 {[%clk 0:28:33]} 10. O-O {[%clk 0:31:02.2]} 10... Nf6 {[%clk 0:28:09.5]} 11. Na5 {[%clk 0:30:51.9]} 11... Qd7 {[%clk 0:27:12.5]} 12. Nb7 {[%clk 0:28:55.8]} 12... O-O {[%clk 0:26:27.8]} 13. Nc5 {[%clk 0:28:06]} 13... Qe7 {[%clk 0:25:55.7]} 14. b4 {[%clk 0:23:43.7]} 14... a5 {[%clk 0:25:26.6]} 15. a3 {[%clk 0:23:29.5]} 15... Rfb8 {[%clk 0:21:36.4]} 16. Ng5 {[%clk 0:22:35.7]} 16... Bc8 {[%clk 0:20:53.7]} 17. f4 {[%clk 0:12:38.2]} 17... exf4 {[%clk 0:20:18]} 18. Rxf4 {[%clk 0:12:33.2]} 18... Bxf4 {[%clk 0:20:10]} 19. Bxf4 {[%clk 0:12:35.1]} 19... axb4 {[%clk 0:19:56.6]} 20. d4 {[%clk 0:10:21.1]} 20... bxa3 {[%clk 0:19:27.3]} 21. Be5 {[%clk 0:09:36.9]} 21... h6 {[%clk 0:18:14.5]} 22. Bxf6 {[%clk 0:07:55.7]} 22... Qxf6 {[%clk 0:17:48]} 23. Nf3 {[%clk 0:07:49.6]} 23... Qg6 {[%clk 0:15:59.7]} 24. Ne5 {[%clk 0:07:41.5]} 24... Qg3 {[%clk 0:14:17.8]} 25. Nxc6 {[%clk 0:06:03]} 25... Bxh3 {[%clk 0:14:00.4]} 26. Qf3 {[%clk 0:03:46.1]} 26... Qxf3 {[%clk 0:13:35.6]} 27. gxf3 {[%clk 0:03:48]} 27... Rb6 {[%clk 0:13:24.9]} 28. Ne7+ {[%clk 0:03:28]} 28... Kf8 {[%clk 0:13:00.1]} 29. Nd5 {[%clk 0:01:35.2]} 29... Rg6+ {[%clk 0:12:20.6]} 30. Kh2 {[%clk 0:01:29.7]} 30... Bg2 {[%clk 0:10:22.5]} 31. Nf4 {[%clk 0:01:29]} 31... Rf6 {[%clk 0:09:37.7]} 32. Nxg2 {[%clk 0:01:28.4]} 32... Rxf3 {[%clk 0:09:36.5]} 33. Nd7+ {[%clk 0:01:11.5]} 33... Ke7 {[%clk 0:09:23]} 34. Ne5 {[%clk 0:01:10.8]} 34... Rf2 {[%clk 0:07:46.4]} 35. c3 {[%clk 0:00:44.8]} 35... a2 {[%clk 0:07:26.6]} 36. Nc6+ {[%clk 0:00:35.9]} 36... Kd6 {[%clk 0:05:57.6]} 37. Nb4 {[%clk 0:00:32.8]} 37... Rb2 {[%clk 0:05:44.6]} 38. e5+ {[%clk 0:00:32.2]} 38... Kd7 {[%clk 0:05:34.1]} 39. Kg3 {[%clk 0:00:33.2]} 39... Rb1 {[%clk 0:05:31.1]} 40. Rxa2 {[%clk 0:00:31.7]} 40... Rxa2 {[%clk 0:05:27.1]} 41. Nxa2 {[%clk 0:00:33.6]} 41... Ra1 {[%clk 0:05:06.6]} 42. Nb4 {[%clk 0:00:33.8]} 42... g5 {[%clk 0:04:53.9]} 43. Ne3 {[%clk 0:00:29.3]} 43... h5 {[%clk 0:03:00.1]} 44. Ned5 {[%clk 0:00:16]} 44... h4+ {[%clk 0:02:11.5]} 45. Kg2 {[%clk 0:00:13.9]} 45... Rd1 {[%clk 0:01:53.2]} 46. Ne3 {[%clk 0:00:07.2]} 46... Rd2+ {[%clk 0:01:25.1]} 47. Kh3 {[%clk 0:00:07.6]} 47... Re2 {[%clk 0:00:59.8]} 48. Nf5 {[%clk 0:00:05]} 48... Re1 {[%clk 0:00:57.8]} 0-1

[Event "Live Chess"]
[Site "Chess.com"]
[Date "2021.04.28"]
[Round "6"]
[White "radio_on"]
[Black "ComfyQueso"]
[Result "1-0"]
[CurrentPosition "5k2/ppb1N2p/2p5/3n2p1/2BP4/2P3P1/PP1B1P1P/6K1 w - -"]
[Timezone "UTC"]
[ECO "C00"]
[ECOUrl "https://www.chess.com/openings/French-Defense-Kings-Indian-Attack-2...d5-3.Nd2"]
[UTCDate "2021.04.28"]
[UTCTime "03:02:43"]
[WhiteElo "1458"]
[BlackElo "811"]
[TimeControl "2100+2"]
[Termination "radio_on won by resignation"]
[StartTime "03:02:43"]
[EndDate "2021.04.28"]
[EndTime "03:27:13"]
[Link "https://www.chess.com/game/live/13317754797"]

1. e4 {[%clk 0:34:56.8]} 1... e6 {[%clk 0:35:00.6]} 2. d3 {[%clk 0:34:54.3]} 2... d5 {[%clk 0:35:00.7]} 3. Nd2 {[%clk 0:34:52.9]} 3... Nc6 {[%clk 0:34:57.7]} 4. Ngf3 {[%clk 0:34:42.5]} 4... Bb4 {[%clk 0:34:56.7]} 5. c3 {[%clk 0:34:39.8]} 5... Ba5 {[%clk 0:34:55.1]} 6. g3 {[%clk 0:34:39.1]} 6... Nge7 {[%clk 0:34:48]} 7. Bg2 {[%clk 0:34:04.6]} 7... e5 {[%clk 0:34:47.1]} 8. exd5 {[%clk 0:33:30.6]} 8... Nxd5 {[%clk 0:34:45.7]} 9. O-O {[%clk 0:33:29.1]} 9... Bg4 {[%clk 0:34:41.3]} 10. Qe1 {[%clk 0:33:04.6]} 10... O-O {[%clk 0:34:35]} 11. Nxe5 {[%clk 0:32:46.1]} 11... Re8 {[%clk 0:34:31.3]} 12. Nxc6 {[%clk 0:31:21.9]} 12... Rxe1 {[%clk 0:34:16.7]} 13. Nxd8 {[%clk 0:31:19.1]} 13... Rxf1+ {[%clk 0:34:16]} 14. Bxf1 {[%clk 0:31:16.6]} 14... Rxd8 {[%clk 0:34:14.8]} 15. d4 {[%clk 0:30:38.1]} 15... Re8 {[%clk 0:34:11.6]} 16. Nc4 {[%clk 0:29:21.7]} 16... Bb6 {[%clk 0:34:04.6]} 17. Bf4 {[%clk 0:27:17]} 17... c6 {[%clk 0:33:58]} 18. Bd2 {[%clk 0:25:41.9]} 18... Bf3 {[%clk 0:33:49.4]} 19. Ne5 {[%clk 0:25:22.6]} 19... f6 {[%clk 0:33:37.1]} 20. Nxf3 {[%clk 0:25:20.5]} 20... Bc7 {[%clk 0:33:31.5]} 21. Bg2 {[%clk 0:23:54.6]} 21... Re2 {[%clk 0:33:20.5]} 22. Bf1 {[%clk 0:23:23.2]} 22... Re4 {[%clk 0:33:16.5]} 23. Bd3 {[%clk 0:21:49.9]} 23... Re8 {[%clk 0:33:15.4]} 24. Bc4 {[%clk 0:19:50.3]} 24... Bd6 {[%clk 0:32:55.3]} 25. Re1 {[%clk 0:19:17.8]} 25... Rf8 {[%clk 0:32:51.3]} 26. Re6 {[%clk 0:18:28.4]} 26... Rd8 {[%clk 0:32:39.2]} 27. Nh4 {[%clk 0:17:54.3]} 27... g5 {[%clk 0:32:34.6]} 28. Nf5 {[%clk 0:17:34.5]} 28... Bc7 {[%clk 0:32:28.1]} 29. Rxf6 {[%clk 0:17:25.6]} 29... Rf8 {[%clk 0:32:23.3]} 30. Ne7+ {[%clk 0:16:37.2]} 30... Kg7 {[%clk 0:32:17.6]} 31. Rxf8 {[%clk 0:15:35.2]} 31... Kxf8 {[%clk 0:32:17.5]} 1-0